bitfinex-derivatives/quotes_BTCF0:USTF0_20250422
["timestamp","ask_amount","ask_price","bid_price","bid_amount"]
[1745349550461,0.289,91571.0,91570.0,0.18865356]
[1745349551363,0.3917,91571.0,91570.0,0.18865356]
[1745349551963,0.5008262,91571.0,91570.0,0.16245186]
[1745349555667,0.3917,91571.0,91570.0,0.16245186]
[1745349555868,0.5008262,91571.0,91570.0,0.16245186]
[1745349556168,0.5008262,91571.0,91570.0,0.14880472]
[1745349560874,0.5008262,91571.0,91570.0,0.12260221]
[1745349561767,0.3917,91571.0,91570.0,0.12260221]
[1745349561967,0.5008262,91571.0,91570.0,0.12260221]
[1745349563166,0.3907,91571.0,91570.0,0.12260221]
[1745349563367,0.3957,91571.0,91570.0,0.12160221]
[1745349563867,0.5018262,91571.0,91570.0,0.12060221]
[1745349564067,0.5038262,91571.0,91570.0,0.12160221]
[1745349564675,0.3947,91571.0,91570.0,0.12160221]
[1745349565468,0.3927,91571.0,91570.0,0.12060221]
[1745349565668,0.3907,91571.0,91570.0,0.12160221]
[1745349565867,0.3917,91571.0,91570.0,0.12160221]
[1745349566877,0.2967,91571.0,91570.0,0.12160221]
[1745349567069,0.194,91571.0,91570.0,0.23080621]
[1745349567372,0.36096375,91583.0,91570.0,0.23080621]
[1745349567373,0.00016375,91583.0,91570.0,0.46716081]
[1745349567671,0.00016375,91583.0,91574.0,0.3608]
[1745349567871,0.00016375,91583.0,91578.0,0.1]
[1745349568068,0.00016375,91583.0,91579.0,0.26876]
[1745349568270,0.00016375,91583.0,91579.0,0.53876]
[1745349568967,0.00016375,91583.0,91582.0,0.3608]
[1745349569168,0.0962,91590.0,91582.0,0.6108]
[1745349569475,0.001,91583.0,91582.0,0.6108]
[1745349569674,0.001,91583.0,91582.0,0.68036]
[1745349569971,0.001,91583.0,91582.0,0.789552]
[1745349570176,0.003,91583.0,91582.0,0.790552]
[1745349570561,0.0962,91590.0,91582.0,0.790552]
[1745349570874,0.0962,91590.0,91582.0,0.68136]
[1745349571868,0.0962,91590.0,91582.0,0.68036]
[1745349572068,0.0983,91589.0,91582.0,0.68136]
[1745349572273,0.0983,91589.0,91583.0,0.06956]
[1745349572469,0.0999,91588.0,91583.0,0.34956]
[1745349573574,0.3608,91608.0,91588.0,0.1]
[1745349573871,0.0999,91606.0,91604.0,0.1]
[1745349574071,0.0999,91606.0,91605.0,0.17326]
[1745349574274,0.0999,91606.0,91605.0,0.41326]
[1745349574869,0.3608,91608.0,91605.0,0.522424]
[1745349575064,0.3608,91608.0,91606.0,0.109164]
[1745349575269,0.3608,91608.0,91606.0,0.379164]
[1745349575669,0.16730675,91607.0,91606.0,0.379164]
[1745349576369,0.16630675,91607.0,91606.0,0.39659766]
[1745349576678,0.16730675,91607.0,91606.0,0.39759766]
[1745349578178,0.16730675,91607.0,91606.0,0.28843366]
[1745349578379,0.0992,91607.0,91606.0,0.39759766]
[1745349579377,0.0992,91607.0,91606.0,0.37140867]
[1745349579687,0.0992,91607.0,91606.0,0.35776857]
[1745349580273,0.0992,91607.0,91606.0,0.24860457]
[1745349580876,0.194,91607.0,91606.0,0.24860457]
[1745349582771,0.2942,91607.0,91606.0,0.31816457]
[1745349582980,0.2942,91607.0,91606.0,0.24860457]
[1745349583175,0.4862,91607.0,91606.0,0.24860457]
[1745349583575,0.4862,91607.0,91606.0,0.23317091]
[1745349591279,0.4852,91607.0,91606.0,0.23217091]
[1745349591477,0.4862,91607.0,91606.0,0.23317091]
[1745349593180,0.5952833,91607.0,91606.0,0.22784341]
[1745349593375,0.4862,91607.0,91606.0,0.21420099]
[1745349593570,0.5952833,91607.0,91606.0,0.21420099]
[1745349593775,0.4862,91607.0,91606.0,0.21420099]
[1745349593977,0.4862,91607.0,91606.0,0.18700868]
[1745349594172,0.2942,91607.0,91606.0,0.28290868]
[1745349594377,0.2942,91607.0,91606.0,0.18700868]
[1745349594573,0.2942,91607.0,91606.0,0.18800868]
[1745349595077,0.2942,91607.0,91606.0,0.18900868]
[1745349595278,0.4862,91607.0,91606.0,0.18900868]
[1745349595484,0.4862,91607.0,91606.0,0.38270868]
[1745349596173,0.2942,91607.0,91606.0,0.38270868]
[1745349597077,0.2942,91607.0,91606.0,0.18900868]
[1745349601184,0.4862,91607.0,91606.0,0.18900868]
[1745349601683,0.4862,91607.0,91606.0,0.39750868]
[1745349602080,0.2942,91607.0,91606.0,0.39750868]
[1745349602680,0.2942,91607.0,91606.0,0.18900868]
[1745349603389,0.4862,91607.0,91606.0,0.18900868]
[1745349604384,0.2942,91607.0,91606.0,0.27056814]
[1745349605784,0.2942,91607.0,91606.0,0.37286814]
[1745349606187,0.001,91607.0,91606.0,0.37286814]
[1745349606385,0.1051,91612.0,91606.0,0.6253645]
[1745349606591,0.1051,91612.0,91606.0,0.5162005]
[1745349606883,0.005,91619.0,91609.0,0.3608]
[1745349607092,0.1051,91617.0,91614.0,0.1]
[1745349607393,0.1051,91617.0,91614.0,0.39]
[1745349607591,0.1051,91617.0,91614.0,0.498152]
[1745349608495,0.00216375,91615.0,91614.0,0.499152]
[1745349608989,0.00316375,91615.0,91614.0,0.500152]
[1745349610088,0.00316375,91615.0,91614.0,0.391]
[1745349611186,0.00316375,91615.0,91614.0,0.46052]
[1745349611581,0.10586375,91615.0,91614.0,0.46052]
[1745349611787,0.10586375,91615.0,91614.0,0.36052]
[1745349612993,0.10586375,91615.0,91614.0,0.291]
[1745349613198,0.10586375,91615.0,91614.0,0.36052]
[1745349613697,0.10586375,91615.0,91614.0,0.291]
[1745349613900,0.57408955,91615.0,91614.0,0.28836138]
[1745349614195,0.76608955,91615.0,91614.0,0.09802172]
[1745349614402,0.65701575,91615.0,91614.0,0.07182919]
[1745349614702,0.76608955,91615.0,91614.0,0.07182919]
[1745349614899,0.40693755,91615.0,91614.0,0.07182919]
[1745349615994,0.51608955,91615.0,91614.0,0.07182919]
[1745349616190,0.40693755,91615.0,91614.0,0.07182919]
[1745349616390,0.29786375,91615.0,91614.0,0.07182919]
[1745349617099,0.10586375,91615.0,91614.0,0.07182919]
[1745349618007,0.10586375,91615.0,91614.0,0.27302919]
[1745349618306,0.10586375,91615.0,91614.0,0.28762361]
[1745349618898,0.10586375,91615.0,91614.0,0.27302919]
[1745349619208,0.10586375,91615.0,91614.0,0.17192919]
[1745349624304,0.20576375,91615.0,91614.0,0.07182919]
[1745349625116,0.39776375,91615.0,91614.0,0.07182919]
[1745349627615,0.50683755,91615.0,91614.0,0.07182919]
[1745349628210,0.50683755,91615.0,91614.0,0.05818827]
[1745349628419,0.50683755,91615.0,91614.0,0.04465425]
[1745349629415,0.61598955,91615.0,91614.0,0.04465425]
[1745349631614,0.39776375,91615.0,91614.0,0.04465425]
[1745349631823,0.29786375,91615.0,91614.0,0.04465425]
[1745349632015,0.40236375,91615.0,91614.0,0.14465425]
[1745349632210,0.21036375,91615.0,91614.0,0.14465425]
[1745349632516,0.21036375,91615.0,91614.0,0.15929657]
[1745349633622,0.21036375,91615.0,91614.0,0.14465425]
[1745349633807,0.21036375,91615.0,91614.0,0.04465425]
[1745349635220,0.40236375,91615.0,91614.0,0.02555916]
[1745349635915,0.51143755,91615.0,91614.0,0.02555916]
[1745349636116,0.40236375,91615.0,91614.0,0.02555916]
[1745349636423,0.40236375,91615.0,91606.0,0.04503916]
[1745349636611,0.3608,91607.0,91606.0,0.30503916]
[1745349637510,0.3608,91607.0,91606.0,0.31972193]
[1745349637920,0.3608,91607.0,91606.0,0.26]
[1745349638221,0.5528,91607.0,91606.0,0.261]
[1745349639219,0.5538,91607.0,91606.0,0.262]
[1745349639920,0.5548,91607.0,91606.0,0.264]
[1745349640915,0.5538,91607.0,91606.0,0.24835933]
[1745349641122,0.5548,91607.0,91606.0,0.25035933]
[1745349641917,0.5538,91607.0,91606.0,0.24835933]
[1745349642317,0.5548,91607.0,91606.0,0.25035933]
[1745349642625,0.194,91607.0,91606.0,0.25035933]
[1745349642824,0.194,91607.0,91606.0,0.41983933]
[1745349643121,0.002,91607.0,91606.0,0.41983933]
[1745349643313,0.002,91607.0,91606.0,0.61883933]
[1745349643516,0.00016375,91615.0,91606.0,0.72800333]
[1745349643716,0.00016375,91615.0,91614.0,0.1]
[1745349643916,0.00016375,91615.0,91614.0,0.37]
[1745349644417,0.00016375,91615.0,91614.0,0.43948]
[1745349644720,0.00116375,91615.0,91614.0,0.43948]
[1745349645117,0.00116375,91615.0,91614.0,0.64558]
[1745349645530,0.00216375,91615.0,91614.0,0.64658]
[1745349648618,0.00216375,91615.0,91614.0,0.62038]
[1745349649525,0.00216375,91615.0,91614.0,0.64658]
[1745349651335,0.00216375,91615.0,91614.0,0.63294123]
[1745349655131,0.00216375,91615.0,91614.0,0.46106123]
[1745349655332,0.11123755,91615.0,91614.0,0.35736123]
[1745349655535,0.1090905,91601.0,91587.0,0.3608]
[1745349655723,0.4698905,91601.0,91600.0,0.12]
[1745349655925,0.8290585,91601.0,91600.0,0.12]
[1745349656123,1.0210585,91601.0,91600.0,0.12]
[1745349656819,1.0220585,91601.0,91600.0,0.122]
[1745349657025,1.0220585,91601.0,91600.0,0.09580565]
[1745349657522,0.7710585,91601.0,91600.0,0.09380565]
[1745349657731,0.7720585,91601.0,91600.0,0.09480565]
[1745349659136,0.9659585,91601.0,91600.0,0.09480565]
[1745349660440,0.7477,91601.0,91600.0,0.09480565]
[1745349661842,0.7477,91601.0,91600.0,0.0811641]
[1745349662341,0.5557,91601.0,91600.0,0.0811641]
[1745349662938,0.6647905,91601.0,91600.0,0.0811641]
[1745349663241,0.8567905,91601.0,91600.0,0.0811641]
[1745349664034,0.9659585,91601.0,91600.0,0.0811641]
[1745349665139,0.9659585,91601.0,91600.0,0.05496677]
[1745349665934,0.8567905,91601.0,91600.0,0.05496677]
[1745349669748,0.8567905,91601.0,91600.0,0.03586564]
[1745349672448,0.8567905,91601.0,91600.0,0.02222242]
[1745349673151,0.7477,91601.0,91600.0,0.28]
[1745349675144,0.76129996,91601.0,91600.0,0.28]
[1745349676242,0.87046796,91601.0,91600.0,0.28]
[1745349676743,0.97955846,91601.0,91600.0,0.28]
[1745349678851,1.39445846,91601.0,91600.0,0.28]
[1745349679456,1.46256349,91601.0,91600.0,0.28]
[1745349681068,1.46256349,91601.0,91600.0,0.25380102]
[1745349681248,1.96256349,91601.0,91600.0,0.25380102]
[1745349682951,1.96256349,91601.0,91600.0,0.24015574]
[1745349684457,2.10347299,91601.0,91600.0,0.24]
[1745349684659,2.10347299,91601.0,91586.0,0.34130807]
[1745349684856,0.3608,91587.0,91586.0,0.23]
[1745349685060,0.84718,91587.0,91586.0,0.23]
[1745349685253,1.148368,91587.0,91586.0,0.23]
[1745349686060,1.651368,91587.0,91586.0,0.231]
[1745349686957,1.655368,91587.0,91586.0,0.19169338]
[1745349687159,1.66361996,91587.0,91586.0,0.19169338]
[1745349687748,1.91361996,91587.0,91586.0,0.19169338]
[1745349688153,1.91361996,91587.0,91577.0,0.00016375]
[1745349688453,0.3608,91578.0,91553.0,0.1015]
[1745349688652,0.3608,91568.0,91553.0,0.1964]
[1745349688957,0.43228,91568.0,91553.0,0.1964]
[1745349689160,0.733488,91568.0,91553.0,0.1751052]
[1745349689457,0.3608,91554.0,91539.0,0.01407911]
[1745349689656,0.20690047,91550.0,91540.0,0.1926]
[1745349689855,0.3608,91541.0,91540.0,0.1926]
[1745349690557,0.36894223,91541.0,91540.0,0.1926]
[1745349691059,0.36994223,91541.0,91540.0,0.1976]
[1745349691256,0.56194223,91541.0,91540.0,0.1976]
[1745349691458,0.56294223,91541.0,91540.0,0.1986]
[1745349691856,0.56294223,91541.0,91540.0,0.4486]
[1745349692948,0.56294223,91541.0,91540.0,0.43494844]
[1745349693351,0.56394223,91541.0,91540.0,0.43394844]
[1745349693951,0.56394223,91541.0,91540.0,0.42894844]
[1745349694255,0.56294223,91541.0,91540.0,0.42894844]
[1745349694551,0.56194223,91541.0,91540.0,0.42894844]
[1745349694750,0.56294223,91541.0,91540.0,0.42894844]
[1745349695949,0.67210423,91541.0,91540.0,0.42894844]
[1745349696360,0.67110423,91541.0,91540.0,0.42894844]
[1745349696660,0.67210423,91541.0,91540.0,0.42894844]
[1745349697354,0.67210423,91541.0,91540.0,0.3449]
[1745349697554,0.77460423,91541.0,91540.0,0.3449]
[1745349698860,0.77360423,91541.0,91540.0,0.3449]
[1745349699051,0.77460423,91541.0,91540.0,0.3449]
[1745349699759,0.77460423,91541.0,91540.0,0.4477]
[1745349700157,0.77360423,91541.0,91540.0,0.4477]
[1745349700353,0.77460423,91541.0,91540.0,0.4477]
[1745349703264,0.67210423,91541.0,91540.0,0.4477]
[1745349703467,0.56294223,91541.0,91540.0,0.43404696]
[1745349704261,0.37094223,91541.0,91540.0,0.43404696]
[1745349704453,0.36994223,91541.0,91540.0,0.397618]
[1745349704660,0.37094223,91541.0,91540.0,0.38404696]
[1745349705854,0.3628,91541.0,91540.0,0.38404696]
[1745349706060,0.3618,91541.0,91540.0,0.38404696]
[1745349706267,0.3628,91541.0,91540.0,0.39793424]
[1745349706961,0.3628,91541.0,91540.0,0.37172369]
[1745349707166,0.3628,91541.0,91540.0,0.54983641]
[1745349708154,0.471962,91541.0,91540.0,0.35783641]
[1745349708563,0.471962,91541.0,91540.0,0.33872451]
[1745349710172,0.470962,91541.0,91540.0,0.33872451]
[1745349710356,0.471962,91541.0,91540.0,0.33872451]
[1745349711265,0.470962,91541.0,91540.0,0.33872451]
[1745349711460,0.471962,91541.0,91540.0,0.33872451]
[1745349712060,0.3628,91541.0,91540.0,0.43812451]
[1745349713862,0.3628,91541.0,91540.0,0.42447314]
[1745349714561,0.3618,91541.0,91540.0,0.42447314]
[1745349714764,0.3628,91541.0,91540.0,0.42447314]
[1745349716567,0.3618,91541.0,91540.0,0.42447314]
[1745349716769,0.3628,91541.0,91540.0,0.42447314]
[1745349718759,0.3618,91541.0,91540.0,0.42447314]
[1745349718959,0.3628,91541.0,91540.0,0.42447314]
[1745349719569,0.3618,91541.0,91540.0,0.39826251]
[1745349719759,0.3628,91541.0,91540.0,0.39826251]
[1745349721464,0.3628,91541.0,91540.0,0.29886251]
[1745349722861,0.3618,91541.0,91540.0,0.29886251]
[1745349723168,0.3628,91541.0,91540.0,0.29886251]
[1745349724060,0.3618,91541.0,91540.0,0.28521114]
[1745349724265,0.3628,91541.0,91540.0,0.28521114]
[1745349724668,0.3618,91541.0,91540.0,0.28521114]
[1745349724868,0.370897,91541.0,91540.0,0.28521114]
[1745349727671,0.370897,91541.0,91540.0,0.25900051]
[1745349728471,0.370897,91541.0,91540.0,0.15620051]
[1745349728662,0.369897,91541.0,91540.0,0.15620051]
[1745349728862,0.370897,91541.0,91540.0,0.15620051]
[1745349729063,0.562897,91541.0,91540.0,0.15620051]
[1745349729373,0.922137,91541.0,91540.0,0.15620051]
[1745349729865,0.922137,91541.0,91540.0,0.13708402]
[1745349730174,1.422137,91541.0,91540.0,0.13708402]
[1745349730769,1.421137,91541.0,91540.0,0.13708402]
[1745349730967,1.422137,91541.0,91540.0,0.13708402]
[1745349731671,1.531299,91541.0,91540.0,0.13708402]
[1745349732871,1.281299,91541.0,91540.0,0.13708402]
[1745349733273,1.946199,91541.0,91540.0,0.13708402]
[1745349733571,1.696199,91541.0,91540.0,0.13708402]
[1745349734171,1.696199,91541.0,91540.0,0.12342841]
[1745349735066,1.76577069,91541.0,91540.0,0.12342841]
[1745349735671,1.76577069,91541.0,91540.0,0.09721127]
[1745349735875,1.13246869,91541.0,91540.0,0.09721127]
[1745349736078,0.93237169,91541.0,91540.0,0.09721127]
[1745349736263,0.93237169,91541.0,91540.0,0.34721127]
[1745349736870,0.43237169,91541.0,91540.0,0.34721127]
[1745349737268,0.43237169,91541.0,91540.0,0.36030409]
[1745349737474,0.43237169,91541.0,91540.0,0.09721127]
[1745349738074,0.43237169,91541.0,91540.0,0.28921127]
[1745349738279,0.3628,91541.0,91540.0,0.28921127]
[1745349740469,0.00016385,91550.0,91540.0,0.64845127]
[1745349740677,0.00016385,91550.0,91541.0,0.0938]
[1745349740876,0.00016385,91550.0,91541.0,0.3338]
[1745349741074,0.00016385,91550.0,91542.0,0.0924]
[1745349741369,0.00016385,91550.0,91542.0,0.3324]
[1745349741676,0.00016385,91550.0,91549.0,0.1091524]
[1745349741877,0.00016385,91550.0,91549.0,0.3391524]
[1745349742072,0.00016385,91550.0,91549.0,0.5311524]
[1745349742385,0.00116385,91550.0,91549.0,0.5311524]
[1745349742580,0.00116385,91550.0,91549.0,0.7252524]
[1745349742877,0.00416385,91550.0,91549.0,0.7252524]
[1745349743585,0.00416385,91550.0,91549.0,0.69904657]
[1745349744076,0.00216385,91550.0,91549.0,0.70104657]
[1745349744483,0.00216385,91550.0,91549.0,0.68739771]
[1745349745783,0.00116385,91550.0,91549.0,0.68639771]
[1745349746089,0.00216385,91550.0,91549.0,0.68639771]
[1745349747176,0.00116385,91550.0,91549.0,0.49439771]
[1745349747371,0.00216385,91550.0,91549.0,0.49439771]
[1745349748072,0.00216385,91550.0,91549.0,0.68639771]
[1745349748987,0.00116385,91550.0,91549.0,0.68639771]
[1745349749192,0.00216385,91550.0,91549.0,0.68639771]
[1745349749886,0.00216385,91550.0,91549.0,0.6171]
[1745349750091,0.00216385,91550.0,91549.0,0.7262524]
[1745349750280,0.00216385,91550.0,91549.0,0.5342524]
[1745349751592,0.00116385,91550.0,91549.0,0.5342524]
[1745349751787,0.00216385,91550.0,91549.0,0.5342524]
[1745349753195,0.00116385,91550.0,91549.0,0.5342524]
[1745349753496,0.00216385,91550.0,91549.0,0.50804656]
[1745349754794,0.00116385,91550.0,91549.0,0.39889416]
[1745349754986,0.00216385,91550.0,91549.0,0.38524527]
[1745349755194,0.00216385,91550.0,91549.0,0.49439767]
[1745349755895,0.00116385,91550.0,91549.0,0.49439767]
[1745349756109,0.00216385,91550.0,91549.0,0.49439767]
[1745349759187,0.00116385,91550.0,91549.0,0.49439767]
[1745349759388,0.00216385,91550.0,91549.0,0.49339767]
[1745349760994,0.00216385,91550.0,91549.0,0.19014527]
[1745349761494,0.00216385,91550.0,91549.0,0.16393885]
[1745349761698,0.00216385,91550.0,91549.0,0.27309125]
[1745349762202,0.00216385,91550.0,91549.0,0.16393885]
[1745349762397,0.10931505,91550.0,91549.0,0.16393885]
[1745349762695,0.11131505,91550.0,91549.0,0.16393885]
[1745349763097,0.30331505,91550.0,91549.0,0.14482803]
[1745349763997,0.59441505,91550.0,91549.0,0.14482803]
[1745349764197,0.59541505,91550.0,91549.0,0.14482803]
[1745349764803,0.59441505,91550.0,91549.0,0.14482803]
[1745349765002,0.59541505,91550.0,91549.0,0.13117744]
[1745349765397,0.59441505,91550.0,91549.0,0.13117744]
[1745349765603,0.59541505,91550.0,91549.0,0.13117744]
[1745349766503,0.59541505,91550.0,91549.0,0.12917744]
[1745349767003,0.59441505,91550.0,91549.0,0.12917744]
[1745349767201,0.59541505,91550.0,91549.0,0.12917744]
[1745349767401,0.39036385,91550.0,91549.0,0.23832984]
[1745349768201,0.19836385,91550.0,91549.0,0.53162984]
[1745349768396,0.19636385,91550.0,91549.0,0.53162984]
[1745349768603,0.19836385,91550.0,91549.0,0.53162984]
[1745349769006,0.19736385,91550.0,91549.0,0.53162984]
[1745349769305,0.19836385,91550.0,91549.0,0.53262984]
[1745349769508,0.19836385,91550.0,91549.0,0.50642327]
[1745349769908,0.19736385,91550.0,91549.0,0.50542327]
[1745349770200,0.19836385,91550.0,91549.0,0.50642327]
[1745349771303,0.00216385,91550.0,91549.0,0.84811432]
[1745349771605,0.22156712,91554.0,91553.0,0.1091476]
[1745349771909,0.22156712,91554.0,91553.0,0.3591476]
[1745349772301,0.22156712,91554.0,91553.0,0.4571476]
[1745349772606,0.22256712,91554.0,91553.0,0.4571476]
[1745349772808,0.22356712,91554.0,91553.0,0.4571476]
[1745349774113,0.002,91554.0,91553.0,0.4571476]
[1745349774410,0.002,91554.0,91553.0,0.4581476]
[1745349774611,0.002,91554.0,91553.0,0.4591476]
[1745349775211,0.0939,91555.0,91553.0,0.4591476]
[1745349775212,0.0939,91555.0,91554.0,0.1091465]
[1745349775408,0.0939,91555.0,91554.0,0.3791465]
[1745349775711,0.0939,91555.0,91554.0,0.5706465]
[1745349776411,0.0949,91555.0,91554.0,0.5726465]
[1745349777611,0.0959,91555.0,91554.0,0.5474424]
[1745349778615,0.0959,91555.0,91554.0,0.5464424]
[1745349780303,0.0959,91555.0,91554.0,0.53552403]
[1745349781113,0.0959,91555.0,91554.0,0.53452403]
[1745349781114,0.0949,91555.0,91554.0,0.53452403]
[1745349781410,0.0949,91555.0,91554.0,0.4625]
[1745349781608,0.0959,91555.0,91554.0,0.5726355]
[1745349782406,0.0959,91555.0,91554.0,0.4635]
[1745349782606,0.0959,91555.0,91554.0,0.5726355]
[1745349783504,0.002,91555.0,91554.0,0.5726355]
[1745349785815,0.002,91555.0,91554.0,0.55898685]
[1745349786603,0.002,91555.0,91554.0,0.53278144]
[1745349787911,0.002,91555.0,91554.0,0.5136736]
[1745349788709,0.36096385,91563.0,91562.0,0.1091259]
[1745349789007,0.00016385,91563.0,91562.0,0.3791259]
[1745349789402,0.05425433,91573.0,91572.0,0.109114]
[1745349789601,0.24937319,91574.0,91572.0,0.109114]
[1745349789602,0.20362752,91574.0,91573.0,0.1091128]
[1745349789801,0.29862752,91574.0,91573.0,0.4846128]
[1745349790005,0.29862752,91574.0,91573.0,0.4836128]
[1745349790405,0.29862752,91574.0,91573.0,0.49679221]
[1745349790914,0.19962752,91574.0,91573.0,0.49679221]
[1745349791308,0.20062752,91574.0,91573.0,0.50079221]
[1745349791516,0.30112752,91574.0,91573.0,0.39167941]
[1745349791706,0.1975,91574.0,91573.0,0.39167941]
[1745349792414,0.1965,91574.0,91573.0,0.39067941]
[1745349792603,0.1975,91574.0,91573.0,0.39467941]
[1745349794116,0.1975,91574.0,91573.0,0.39567941]
[1745349794316,0.1975,91574.0,91573.0,0.50479221]
[1745349794918,0.1975,91574.0,91573.0,0.39567941]
[1745349795115,0.3895,91574.0,91573.0,0.39567941]
[1745349795416,0.3895,91574.0,91573.0,0.50479221]
[1745349795822,0.3895,91574.0,91573.0,0.49114627]
[1745349798109,0.1975,91574.0,91573.0,0.49114627]
[1745349799015,0.002,91574.0,91573.0,0.49114627]
[1745349799317,0.002,91574.0,91573.0,0.59114627]
[1745349799514,0.0965,91581.0,91580.0,0.1091045]
[1745349799706,0.0965,91581.0,91580.0,0.3591045]
[1745349799906,0.0954,91582.0,91581.0,0.1091033]
[1745349800114,0.0954,91582.0,91581.0,0.5460033]
[1745349800313,0.00016385,91583.0,91582.0,0.1091021]
[1745349800513,0.00016385,91583.0,91582.0,0.5560021]
[1745349800708,0.00016385,91583.0,91582.0,0.5550021]
[1745349800909,0.00016385,91583.0,91582.0,0.5540021]
[1745349801105,0.0933,91599.0,91587.0,0.1090957]
[1745349801305,0.0933,91599.0,91588.0,0.2852]
[1745349801519,0.0933,91599.0,91588.0,0.5352]
[1745349801923,0.0933,91599.0,91588.0,0.643295]
[1745349802110,0.00016385,91598.0,91588.0,0.643295]
[1745349802309,0.00016385,91598.0,91588.0,0.642295]
[1745349802505,0.3668,91589.0,91588.0,0.645295]
[1745349803016,0.3668,91589.0,91588.0,0.548995]
[1745349803609,0.3678,91589.0,91588.0,0.550995]
[1745349806223,0.3678,91589.0,91588.0,0.5373516]
[1745349806722,0.007,91589.0,91588.0,0.5373516]
[1745349807615,0.1045,91589.0,91588.0,0.5373516]
[1745349816427,0.1045,91589.0,91588.0,0.52370893]
[1745349820824,0.4149,91613.0,91588.0,0.62379792]
[1745349821022,0.1026,91608.0,91605.0,0.1090737]
[1745349821219,0.1026,91608.0,91606.0,0.1908]
[1745349821418,0.1026,91608.0,91606.0,0.4608]
[1745349821617,0.45116309,91619.0,91606.0,0.5153368]
[1745349821912,0.1026,91618.0,91608.0,0.1090712]
[1745349822117,0.00016376,91617.0,91616.0,0.1090617]
[1745349822317,0.00016376,91617.0,91616.0,0.3890617]
[1745349822625,0.09036309,91619.0,91616.0,0.7498617]
[1745349822921,0.0975,91628.0,91623.0,0.1090529]
[1745349823223,0.2895,91628.0,91625.0,0.1090507]
[1745349823527,0.2895,91628.0,91626.0,0.0901]
[1745349823720,0.2895,91628.0,91626.0,0.4791493]
[1745349824315,0.2935,91628.0,91626.0,0.4791495]
[1745349824523,0.2935,91628.0,91626.0,0.3701]
[1745349824922,0.2925,91628.0,91626.0,0.4791496]
[1745349825121,0.2965,91628.0,91626.0,0.4801496]
[1745349825327,0.00016376,91636.0,91627.0,0.4153243]
[1745349825523,0.00016376,91636.0,91635.0,0.1090391]
[1745349825822,0.00016376,91636.0,91635.0,0.7298391]
[1745349826514,0.00016376,91636.0,91635.0,0.74224686]
[1745349826915,0.00316376,91636.0,91635.0,0.74224686]
[1745349827327,0.1015,91643.0,91636.0,0.0545187]
[1745349827528,0.0936,91642.0,91639.0,0.1060337]
[1745349827726,0.0936,91642.0,91640.0,0.1003]
[1745349827929,0.0936,91642.0,91640.0,0.3603]
[1745349827930,0.1002,91641.0,91640.0,0.3603]
[1745349828132,0.2922,91641.0,91640.0,0.4693331]
[1745349829125,0.197,91649.0,91648.0,0.1090236]
[1745349829321,0.00798458,91662.0,91649.0,0.1090224]
[1745349829619,0.1914,91661.0,91649.0,0.3603]
[1745349830030,0.1914,91661.0,91650.0,0.20667028]
[1745349830327,0.3834,91661.0,91656.0,0.3608]
[1745349830532,0.3834,91661.0,91656.0,0.6408]
[1745349831221,0.3834,91661.0,91656.0,0.28]
[1745349831419,0.1090129,91657.0,91656.0,0.28]
[1745349831832,0.1635164,91659.0,91656.0,0.28]
[1745349832031,0.1012,91658.0,91656.0,0.28]
[1745349832233,0.1969,91658.0,91656.0,0.28]
[1745349832532,0.3059123,91658.0,91656.0,0.281]
[1745349832929,0.3059123,91658.0,91656.0,0.26736479]
[1745349833126,0.3059123,91658.0,91656.0,0.26836479]
[1745349833127,0.4979123,91658.0,91656.0,0.26836479]
[1745349833324,0.3889,91658.0,91656.0,0.26836479]
[1745349834023,0.3889,91658.0,91656.0,0.26736479]
[1745349837836,0.1090129,91657.0,91656.0,0.26736479]
[1745349838226,0.3010129,91657.0,91656.0,0.26736479]
[1745349838428,0.4965129,91657.0,91656.0,0.26736479]
[1745349838636,0.3875,91657.0,91656.0,0.26736479]
[1745349838827,0.4965129,91657.0,91656.0,0.26736479]
[1745349839133,0.3875,91657.0,91656.0,0.26736479]
[1745349839633,0.3875,91657.0,91656.0,0.26636479]
[1745349839828,0.3875,91657.0,91656.0,0.26936479]
[1745349840831,0.192,91657.0,91656.0,0.37837889]
[1745349841232,0.4149,91662.0,91661.0,0.1090081]
[1745349841434,0.4149,91662.0,91661.0,0.3690081]
[1745349841822,0.4149,91662.0,91661.0,0.26]
[1745349842023,0.4149,91662.0,91661.0,0.4602]
[1745349842223,0.6069,91662.0,91661.0,0.4602]
[1745349842426,0.6079,91662.0,91661.0,0.4602]
[1745349842635,0.6079,91662.0,91661.0,0.4622]
[1745349843633,0.6079,91662.0,91661.0,0.44856637]
[1745349844142,0.6069,91662.0,91661.0,0.44856637]
[1745349846030,0.192,91662.0,91661.0,0.55757447]
[1745349846234,0.07324,91698.0,91662.0,0.054503]
[1745349846435,0.0974,91688.0,91684.0,0.3608]
[1745349846631,0.0974,91688.0,91685.0,0.0975]
[1745349846936,0.0974,91688.0,91685.0,0.4612]
[1745349847435,0.2894,91688.0,91685.0,0.4612]
[1745349847627,0.3983764,91688.0,91685.0,0.4612]
[1745349847830,0.2894,91688.0,91685.0,0.4612]
[1745349848539,0.192,91688.0,91685.0,0.4612]
[1745349848736,0.192,91688.0,91685.0,0.570179]
[1745349849034,0.193,91688.0,91685.0,0.4612]
[1745349849241,0.001,91688.0,91685.0,0.4612]
[1745349849829,0.0956,91687.0,91685.0,0.4612]
[1745349851338,0.2876,91687.0,91685.0,0.4612]
[1745349853341,0.192,91687.0,91685.0,0.4612]
[1745349853532,0.192,91687.0,91685.0,0.44757022]
[1745349854239,0.192,91687.0,91686.0,0.1089784]
[1745349854542,0.192,91687.0,91686.0,0.27]
[1745349854747,0.192,91687.0,91686.0,0.3679]
[1745349855237,0.1089699,91694.0,91686.0,0.4768783]
[1745349855437,0.1089706,91693.0,91686.0,0.4768778]
[1745349855631,0.1089706,91693.0,91686.0,0.3679]
[1745349856338,0.1089715,91692.0,91686.0,0.3679]
[1745349856541,0.1089772,91687.0,91686.0,0.3679]
[1745349857629,0.002,91694.0,91686.0,0.3679]
[1745349857630,0.1089768,91688.0,91686.0,0.3679]
[1745349857832,0.1089768,91688.0,91687.0,0.0958]
[1745349858135,0.3009768,91688.0,91687.0,0.3558]
[1745349858333,0.3009768,91688.0,91687.0,0.4507]
[1745349858739,0.192,91688.0,91687.0,0.4507]
[1745349858933,0.192,91688.0,91687.0,0.4547]